fUST/lending_fUST_20260330
["ID","MTS","AMOUNT","RATE_DAILY","PERIOD"]
[419084169,1774850684721,-237.18890955,0.00043836,120]
[419084170,1774850684747,-2000.0,0.00043836,120]
[419084171,1774850684774,-173.0,0.00043836,30]
[419084172,1774850684806,-200.0,0.00043836,30]
[419084173,1774850684834,-304.0,0.00043836,30]
[419084174,1774850684861,-200.0,0.00043836,30]
[419084175,1774850684890,-303.0,0.00043836,30]
[419084176,1774850684920,-156.0,0.00043836,30]
[419084177,1774850684949,-425.6,0.0004387,120]
[419084178,1774850684980,-1266.56,0.0004387,120]
[419084179,1774850685009,-1500.0,0.000439,120]
[419084180,1774850685039,-1351.5,0.000439,120]
[419084181,1774850685070,-1186.13,0.00043993,120]
[419084182,1774850685101,-527.7,0.00043993,120]
[419084183,1774850685130,-500.0,0.00044,30]
[419084184,1774850685158,-500.0,0.00044,120]
[419084185,1774850685187,-1000.0,0.00044,120]
[419084186,1774850685213,-451.0,0.00044109,31]
[419084187,1774850685241,-762.66483503,0.000443,120]
[419084188,1774850685270,-807.81708131,0.000443,120]
[419084189,1774850685299,-1600.34336505,0.000443,120]
[419084190,1774850685326,-572.59157803,0.000443,120]
[419084191,1774850685355,-815.23626291,0.000443,120]
[419084192,1774850685383,-705.68441242,0.000443,120]
[419084193,1774850685412,-170.0,0.000443,120]
[419084194,1774850685442,-200.0,0.00044376,120]
[419084195,1774850685471,-2221438.7249,0.00044444,30]
[419084196,1774850685499,-4754.01690475,0.0004447,74]
[419084197,1774850685528,-1186.13,0.0004452,120]
[419084198,1774850685555,-451.0,0.00044657,32]
[419084199,1774850685584,-170.0,0.000447,120]
[419084200,1774850685613,-2000.0,0.000449,120]
[419084201,1774850685641,-200000.0,0.000449,120]
[419084202,1774850685669,-1351.5,0.000449,120]
[419084203,1774850685697,-885.78210062,0.00045,20]
[419084204,1774850685724,-471.99518841,0.00045,120]
[419084205,1774850685752,-510.77427651,0.00045,120]
[419084206,1774850685780,-1000.0,0.00045,30]
[419084207,1774850685809,-2000.0,0.00045,120]
[419084208,1774850685837,-5000.0,0.00045,30]
[419084209,1774850685865,-150.0,0.00045,120]
[419084210,1774850685892,-2347.70623073,0.00045,120]
[419084211,1774850685920,-1000.0,0.00045,120]
[419084212,1774850685946,-624.11465804,0.00045,120]
[419084213,1774850685973,-10000.0,0.00045,30]
[419084214,1774850686000,-6226.93374877,0.00045,120]
[419084215,1774850686027,-15000.0,0.00045,30]
[419084216,1774850686057,-5001.49523931,0.00045,120]
[419084217,1774850686084,-168.0,0.00045,120]
[419084218,1774850686112,-590.0,0.00045,120]
[419084219,1774850686140,-5096.023037,0.00045,120]
[419084220,1774850686167,-4500.74840048,0.00045,65]
[419084221,1774850686195,-13916.64903865,0.00045,30]
[419084222,1774850686221,-222.53022379,0.00045,120]
[419084223,1774850686249,-528.7013435,0.00045,30]
[419084224,1774850686276,-612.11588235,0.00045,120]
[419084225,1774850686303,-220.30224544,0.00045,90]
[419084226,1774850686330,-25000.0,0.00045,120]
[419084227,1774850686359,-8049.19060961,0.00045,30]
[419084228,1774850686386,-3224.08802294,0.00045,120]
[419084229,1774850686416,-3407.0,0.00045,120]
[419084230,1774850686525,-1000.0,0.00045,120]
[419084231,1774850686555,-1186.13,0.00045047,120]
[419084232,1774850686584,-170.0,0.000452,120]
[419084233,1774850686612,-451.0,0.00045205,33]
[419084234,1774850686642,-200.0,0.00045557,120]
[419084235,1774850686671,-1186.13,0.00045575,120]
[419084236,1774850686703,-187.62630324,0.00045585,120]
[419084237,1774850686732,-170.0,0.000456,120]
[419084238,1774850686763,-198.24588659,0.00045614,120]
[419084239,1774850686791,-425.6,0.00045624,120]
[419084240,1774850686819,-1266.56,0.00045624,120]
[419084241,1774850686847,-451.0,0.00045753,34]
[419084242,1774850686879,-1500.0,0.000459,120]
[419084243,1774850686924,-1351.5,0.000459,120]
[419084244,1774850686969,-500.0,0.00046,120]
[419084245,1774850687015,-11927.55,0.00046,120]
[419084246,1774850687063,-1500.49,0.00046,120]
[419084247,1774850687111,-170.0,0.000461,120]
[419084248,1774850687159,-1186.13,0.00046102,120]
[419084249,1774850687206,-194.72,0.00046301,120]
[419084250,1774850687254,-451.0,0.00046301,35]
[419084251,1774850687306,-9479.60522675,0.00046432,120]
[419084252,1774850687352,-50000.00000002,0.00046495,120]
[419084253,1774850687398,-151.0,0.00046574,10]
[419084254,1774850687448,-151.0,0.00046574,10]
[419084255,1774850687499,-200.0,0.00046575,120]
[419084256,1774850687546,-313.0,0.00046575,120]
[419084257,1774850687593,-209.0,0.00046575,120]
[419084258,1774850687687,11770.65905334,0.00046575,10]
[419084259,1774850687738,736.0,0.00023528,10]
[419084260,1774850687790,16186.44493202,0.00046575,10]
[419084261,1774850687904,2459.28,0.0002199,10]
[419084264,1774850986754,-487.55,0.0001,2]
[419084280,1774851031924,-384.768375,0.00013,2]
[419084347,1774851041216,-337.87714729,0.00013,2]
[419084419,1774851041910,-4277.35447771,0.00013,2]
[419084421,1774851041920,-1080.83437137,0.00013131,2]
[419084423,1774851041930,-1000.0,0.00013699,2]
[419084425,1774851041940,-193.38118126,0.000195,2]
[419084428,1774851041950,-1200.0,0.00020049,2]
[419084430,1774851041960,-4261.52214972,0.0002005,34]
[419084432,1774851041970,-300.0,0.0002014,2]
[419084434,1774851041979,-1090.0,0.00020219,2]
[419084436,1774851041988,-230.613,0.00020221,2]
[419084438,1774851041997,-250.0,0.00020221,2]
[419084440,1774851042007,-1403.0,0.00020221,2]
[419084442,1774851042017,-239.61382276,0.00020221,2]
[419084624,1774851044456,-403.38617724,0.00020221,2]
[419084625,1774851044468,-2199.0,0.00020221,2]
[419084626,1774851044479,-184.0,0.00020221,2]
[419084627,1774851044490,-165.26603059,0.000207,3]
[419084628,1774851044501,-152.0,0.000209,2]
[419084629,1774851044512,-168.16,0.00021143,2]
[419084630,1774851044524,-239.07632835,0.0002156,2]
[419084631,1774851044536,-500.0,0.00021644,2]
[419084632,1774851044547,-1599.84948181,0.0002178,2]
[419084633,1774851044558,-14947.2217712,0.00021807,2]
[419084634,1774851044569,-1826.3646445,0.00021807,2]
[419084635,1774851044580,-290.342444,0.00021807,2]
[419084636,1774851044591,-152.0,0.000219,2]
[419084637,1774851044603,-5448.86497316,0.000219,2]
[419084638,1774851044614,-1000.0,0.00021918,2]
[419084639,1774851044626,-1858.6823886,0.00021952,2]
[419084640,1774851044638,-500.0,0.00021973,2]
[419084641,1774851044649,-571.74983886,0.00021973,2]
[419084642,1774851044660,-500.0,0.00021973,2]
[419084643,1774851044671,-240.1735732,0.00021973,2]
[419084644,1774851044683,-500.0,0.00021973,2]
[419084645,1774851044694,-206.96607841,0.00021999,2]
[419084646,1774851044704,-321.81412302,0.00021999,2]
[419084647,1774851044715,-869.4250842,0.00021999,7]
[419084648,1774851044726,-579.26542144,0.00021999,2]
[419084649,1774851044737,-218.38618599,0.00021999,2]
[419084650,1774851044748,-500.0,0.00021999,2]
[419084651,1774851044759,-321.70322867,0.00021999,2]
[419084652,1774851044770,-500.0,0.00021999,2]
[419084653,1774851044781,-500.0,0.00021999,2]
[419084654,1774851044792,-500.0,0.00021999,2]
[419084655,1774851044802,-500.0,0.00021999,2]
[419084656,1774851044813,-500.0,0.00021999,2]
[419084657,1774851044824,-500.0,0.00021999,2]
[419084658,1774851044835,-500.0,0.00021999,2]
[419084659,1774851044845,-500.0,0.00021999,2]
[419084660,1774851044857,-500.0,0.00021999,2]
[419084661,1774851044868,-500.0,0.00021999,2]
[419084662,1774851044880,-500.0,0.00021999,2]
[419084663,1774851044891,-500.0,0.00021999,2]
[419084664,1774851044902,-500.0,0.00021999,2]
[419084665,1774851044912,-500.0,0.00021999,2]
[419084666,1774851044923,-500.0,0.00021999,2]
[419084667,1774851044934,-232.95,0.00021999,2]
[419084668,1774851044946,-420.75,0.00021999,2]
[419084669,1774851045084,-500.0,0.00021999,2]
[419084670,1774851045095,-500.0,0.00021999,2]
[419084671,1774851045104,-500.0,0.00021999,2]
[419084672,1774851045114,-500.0,0.00021999,2]
[419084673,1774851045124,-500.0,0.00021999,2]
[419084674,1774851045135,-500.0,0.00021999,2]
[419084675,1774851045144,-500.0,0.00021999,2]
[419084676,1774851045154,-608.99794931,0.00021999,2]
[419084677,1774851045165,-500.0,0.00021999,2]
[419084678,1774851045174,-500.0,0.00021999,2]
[419084679,1774851045184,-500.0,0.00021999,2]
[419084680,1774851045193,-500.0,0.00021999,2]
[419084681,1774851045203,-500.0,0.00021999,2]
[419084682,1774851045212,-500.0,0.00021999,2]
[419084683,1774851045222,-500.0,0.00021999,2]
[419084684,1774851045232,-500.0,0.00021999,2]
[419084685,1774851045241,-500.0,0.00021999,2]
[419084686,1774851045252,-500.0,0.00021999,2]
[419084687,1774851045261,-481601.11446777,0.00022,2]
[419084688,1774851045270,-500.06991745,0.00022,2]
[419084689,1774851045280,-366913.31067586,0.00022,2]
[419084690,1774851045297,-2455.38369134,0.00022,2]
[419084691,1774851045309,-498.97851246,0.00022,2]
[419084697,1774851046162,-4132.80713712,0.00020019,2]
[419084698,1774851046230,-867.19286288,0.00020019,2]
[419084699,1774851046241,-2049.4,0.0002199,10]
[419084700,1774851046251,-7383.31795176,0.00022,2]
[419084701,1774851046419,-569.37999998,0.00022,2]
[419084702,1774851046431,-6300.69268077,0.00022,2]
[419084703,1774851046444,-895.24890611,0.00022,2]
[419084704,1774851046456,-2255.405377,0.00022,2]
[419084705,1774851046481,-229690.89396467,0.00022,2]
[419084706,1774851046493,-7107.2208789,0.00022,2]
[419084724,1774852232337,-351.995,0.00013027,2]
[419084729,1774852238332,-1405.5599481,0.00012897,2]
[419084878,1774852243425,-3594.4400519,0.00012897,2]
[419084880,1774852243435,-156.0,0.00013699,2]
[419084882,1774852243446,-1000.0,0.00013699,2]
[419084884,1774852243455,-300.0,0.00020242,2]
[419084886,1774852243465,-1200.0,0.00020242,2]
[419084888,1774852243474,-643.0,0.00020243,2]
[419084890,1774852243483,-1424.91862442,0.00020243,2]
[419084912,1774852243688,-774.08137558,0.00020243,2]
[419084915,1774852243699,-1403.0,0.00020243,2]
[419084918,1774852243710,-197.54,0.00020243,2]
[419084920,1774852243719,-439.0,0.00020243,2]
[419084922,1774852243730,-156.0,0.00020388,2]
[419084924,1774852243745,-1000.0,0.00020726,2]
[419084926,1774852243754,-1029.80519367,0.00020899,2]
[419084928,1774852243765,-890.81299942,0.00021604,2]
[419085125,1774852246675,-718.25761569,0.00021604,2]
[419085126,1774852246684,-555.0,0.00021643,2]
[419085127,1774852246693,-444.0,0.00021643,2]
[419085128,1774852246702,-333.0,0.00021643,2]
[419085129,1774852246712,-500.0,0.00021644,2]
[419085130,1774852246721,-423.0,0.00021673,10]
[419085131,1774852246732,-669.0,0.00021673,10]
[419085132,1774852246741,-559.42319928,0.000219,51]
[419085133,1774852246751,-737.2899835,0.000219,51]
[419085134,1774852246766,-459.94394339,0.000219,51]
[419085135,1774852246775,-1330.24897156,0.000219,51]
[419085136,1774852246784,-223.25293718,0.000219,2]
[419085137,1774852246794,-4903.97847588,0.000219,2]
[419085138,1774852246803,-1000.0,0.00021918,2]
[419085139,1774852246812,-500.0,0.00021973,2]
[419085140,1774852246822,-500.0,0.00021973,2]
[419085141,1774852246831,-500.0,0.00021973,2]
[419085142,1774852246840,-1707.83,0.0002199,10]
[419085143,1774852246850,-1423.19,0.0002199,10]
[419085144,1774852246859,-1113.8919854,0.00021991,2]
[419085236,1774853435118,-349.99,0.00013027,2]
[419085299,1774853438893,-1403.34097202,0.00013027,2]
[419085347,1774853444166,-3246.66902798,0.00013027,2]
[419085348,1774853444177,-1000.0,0.00013699,2]
[419085349,1774853444188,-236.53266104,0.0001802,2]
[419085350,1774853444198,-2314.74462407,0.00019505,2]
[419085351,1774853444209,-1130.0,0.00020263,2]
[419085352,1774853444220,-300.0,0.00020263,2]
[419085353,1774853444230,-640.0,0.00020264,2]
[419085354,1774853444240,-1403.0,0.00020264,2]
[419085355,1774853444250,-184.0,0.00020264,2]
[419085357,1774853444261,-369.21270059,0.00020531,2]
[419085358,1774853444271,-500.0,0.00021644,2]
[419085359,1774853444281,-599.60298507,0.00021887,2]
[419085360,1774853444291,-2398.4119403,0.00021887,2]
[419085361,1774853444302,-223.25293718,0.0002189,2]
[419085362,1774853444313,-1000.0,0.00021918,2]
[419085363,1774853444323,-621.78829552,0.00021942,2]
[419085364,1774853444334,-500.0,0.00021973,2]
[419085365,1774853444345,-500.0,0.00021973,2]
[419085366,1774853444354,-522.01,0.00021986,9]
[419085367,1774853444365,-162.38071901,0.00021987,2]
[419085368,1774853444375,-151.0,0.00021987,2]
[419085369,1774853444385,-151.0,0.00021987,2]
[419085370,1774853444396,-151.0,0.00021987,2]
[419085371,1774853444407,-151.0,0.00021987,2]
[419085372,1774853444418,-599.60298507,0.00021987,2]
[419085373,1774853444429,-151.0,0.00021987,2]
[419085374,1774853444440,-151.0,0.00021987,2]
[419085375,1774853444450,-151.0,0.00021987,2]
[419085376,1774853444462,-151.0,0.00021987,2]
[419085377,1774853444474,-151.0,0.00021987,2]
[419085378,1774853444484,-151.0,0.00021987,2]
[419085379,1774853444494,-151.0,0.00021987,2]
[419085380,1774853444506,-151.0,0.00021987,2]
[419085381,1774853444516,-151.0,0.00021987,2]
[419085382,1774853444527,-151.0,0.00021987,2]
[419085383,1774853444537,-151.0,0.00021987,2]
[419085384,1774853444547,-709.22,0.0002199,10]
[419085385,1774853444557,-591.02,0.0002199,10]
[419085386,1774853444567,-969.29,0.0002199,10]
[419085387,1774853444578,-969.29,0.0002199,10]
[419085388,1774853444588,-646.19,0.0002199,10]
[419085389,1774853444598,-383.77446737,0.0002199,10]
[419085400,1774853452846,-448.75,0.0002199,10]
[419085402,1774853452856,-168.16184638,0.00021991,2]
[419085403,1774853452866,-644.79446246,0.00021997,2]
[419085404,1774853452877,-3335.76468006,0.00021999,2]
[419085405,1774853452887,-500.0,0.00021999,2]
[419085406,1774853452898,-192.55,0.00021999,2]
[419085407,1774853452909,-546.75,0.00021999,2]
[419085408,1774853452919,-152.87033019,0.00021999,2]
[419085409,1774853452929,-500.0,0.00021999,2]
[419085410,1774853452940,-234.76280606,0.00021999,2]
[419085411,1774853453421,-190.42945401,0.00021999,2]
[419085412,1774853453431,-623.22199437,0.00021999,2]
[419085413,1774853453442,-522.01,0.00021999,9]
[419085414,1774853453452,-39.06166807,0.00021999,9]
[419086232,1774854639151,-5000.0,7.524e-05,2]
[419086233,1774854639162,-1200.0,7.6e-05,2]
[419086234,1774854639172,-158.231099,0.00010012,2]
[419086235,1774854639182,-1000.0,0.00013699,2]
[419086236,1774854639193,-158.231099,0.00015019,2]
[419086237,1774854639204,-425.79436505,0.00017969,2]
[419086238,1774854639214,-1200.0,0.0001939,2]
[419086239,1774854639224,-329.38239505,0.00019391,2]
[419086240,1774854639234,-228.690655,0.00019867,2]
[419086241,1774854639244,-300.0,0.00019999,2]
[419086242,1774854639255,-1017.75,0.0002,2]
[419086243,1774854639265,-18060.6835027,0.0002,7]
[419086245,1774854639279,-10951.89453663,0.0002,7]
[419086246,1774854639288,-1257.0965,0.0002,2]
[419086247,1774854639299,-8997.28811742,0.0002,2]
[419086270,1774854650572,-272.97738481,0.000198,2]
[419086271,1774854650582,-2829.71188258,0.0002,2]
[419086273,1774854650593,-6520.70866466,0.0002,2]
[419086274,1774854650642,-6744.99485752,0.0002,2]
[419086276,1774854651014,-3166.47645286,0.0002,2]
[419086277,1774854651027,-1275.38190145,0.0002,2]
[419086278,1774854651084,-1888.90328211,0.0002,2]
[419086375,1774855846372,-378.54296956,0.00012927,2]
[419086379,1774855919603,-1049.44611145,0.00012927,2]
[419086607,1774857032462,-1200.0,0.00012193,2]
[419086609,1774857032473,-1706.71867289,0.00012194,2]
[419087056,1774857038639,-3293.28132711,0.00012194,2]
[419087058,1774857038651,-592.0,0.00012194,2]
[419087060,1774857038661,-509.78971537,0.00012317,2]
[419087062,1774857038672,-1503.0,0.00013412,2]
[419087064,1774857038683,-1000.0,0.00013699,2]
[419087066,1774857038694,-300.0,0.00017363,2]
[419087068,1774857038705,-300.0,0.00017363,2]
[419087070,1774857038714,-300.0,0.00017363,2]
[419087072,1774857038725,-420.0,0.00018957,2]
[419087074,1774857038735,-195.4506081,0.00018993,2]
[419087076,1774857038746,-6224.32912226,0.00018993,2]
[419087079,1774857038757,-178.0,0.00019041,120]
[419087081,1774857038767,-182.9199372,0.00019266,2]
[419087082,1774857038777,-500.0,0.0001931,9]
[419087084,1774857038787,-1097.651614,0.00019311,2]
[419087086,1774857038797,-151.0,0.00019311,2]
[419087088,1774857038808,-1403.0,0.00019311,2]
[419087091,1774857038818,-2199.0,0.00019311,2]
[419087093,1774857038828,-439.0,0.00019311,2]
[419087095,1774857038838,-640.0,0.00019311,2]
[419087096,1774857038848,-1000.0,0.00019796,2]
[419087098,1774857038858,-200.0,0.0002,8]
[419087101,1774857038869,-20000.0,0.0002,2]
[419087103,1774857038879,-151.0,0.0002,2]
[419087105,1774857038889,-158.231099,0.00020025,2]
[419087107,1774857038900,-160.0,0.00020089,120]
[419087109,1774857038910,-161.0,0.00020089,120]
[419087110,1774857038919,-444.0,0.00020099,120]
[419087112,1774857038929,-266.0,0.00020099,120]
[419087114,1774857038940,-160.0,0.00020099,120]
[419087116,1774857038951,-209.218,0.00020265,2]
[419087118,1774857038962,-150.572,0.00020265,2]
[419087121,1774857038973,-587.0,0.00020698,2]
[419087123,1774857038983,-500.0,0.0002083,60]
[419087125,1774857038993,-506.5813769,0.0002083,60]
[419087127,1774857039003,-251.89306761,0.0002089,2]
[419087129,1774857039013,-287.87779156,0.0002089,2]
[419087131,1774857039023,-151.0,0.00020899,2]
[419087133,1774857039033,-151.0,0.00020899,2]
[419087135,1774857039043,-151.0,0.00020899,2]
[419087137,1774857039053,-151.0,0.00020899,2]
[419087139,1774857039063,-151.0,0.00020899,2]
[419087141,1774857039073,-151.0,0.00020899,2]
[419087143,1774857039082,-151.0,0.00020899,2]
[419087145,1774857039092,-599.60298507,0.00020899,2]
[419087147,1774857039102,-151.0,0.00020899,2]
[419087149,1774857039112,-151.0,0.00020899,2]
[419087151,1774857039122,-599.60298507,0.00020899,2]
[419087152,1774857039131,-151.0,0.00020899,2]
[419087155,1774857039141,-151.0,0.00020899,2]
[419087157,1774857039151,-151.0,0.00020899,2]
[419087159,1774857039160,-151.0,0.00020899,2]
[419087171,1774857039272,-151.0,0.00020899,2]
[419087173,1774857039282,-151.0,0.00020899,2]
[419087175,1774857039292,-151.0,0.00020899,2]
[419087177,1774857039302,-2398.4119403,0.00020899,2]
[419087179,1774857039313,-162.38071901,0.00020899,2]
[419087181,1774857039323,-1500.0,0.000209,2]
[419087183,1774857039333,-208.565582,0.000209,2]
[419087185,1774857039344,-621.78829552,0.00020954,2]
[419087187,1774857039353,-222.82758131,0.00020993,2]
[419087189,1774857039363,-644.79446246,0.00021009,2]
[419087191,1774857039374,-668.65185757,0.00021064,2]
[419087193,1774857039385,-160.0,0.00021093,120]
[419087195,1774857039396,-161.0,0.00021093,120]
[419087197,1774857039406,-500.0,0.00021103,9]
[419087199,1774857039417,-444.0,0.00021104,120]
[419087201,1774857039428,-266.0,0.00021104,120]
[419087203,1774857039438,-160.0,0.00021104,120]
[419087205,1774857039449,-926.0,0.0002111,10]
[419087207,1774857039460,-630.0,0.0002111,10]
[419087209,1774857039470,-693.3919763,0.00021119,2]
[419087211,1774857039481,-170.0,0.00021157,120]
[419087213,1774857039492,-719.04747942,0.00021174,2]
[419087215,1774857039502,-745.65223616,0.00021229,2]
[419087217,1774857039513,-773.2413689,0.00021284,2]
[419087219,1774857039523,-801.85129955,0.00021339,2]
[419087221,1774857039534,-831.51979763,0.00021394,2]
[419087223,1774857039544,-449.8090493,0.00021419,2]
[419087225,1774857039554,-621.78829552,0.00021447,2]
[419087227,1774857039565,-2487.15318209,0.00021447,2]
[419087229,1774857039575,-862.28603014,0.00021449,2]
[419087231,1774857039586,-894.19061326,0.00021504,2]
[419087233,1774857039596,-178.09563132,0.00021818,2]
[419087235,1774857039606,-178.0956313,0.00021845,2]
[419087237,1774857039617,-178.0956313,0.00021873,2]
[419087239,1774857039627,-1500.0,0.000219,2]
[419087241,1774857039637,-4413.58062822,0.000219,2]
[419087243,1774857039648,-178.0956313,0.000219,2]
[419087245,1774857039658,-1186.0,0.00021908,10]
[419087247,1774857039668,-500.0,0.00021913,9]
[419087249,1774857039678,-500.0,0.00021913,9]
[419087251,1774857039688,-500.0,0.00021913,9]
[419087253,1774857039698,-184.13723156,0.00021915,2]
[419087255,1774857039708,-187.62095989,0.00021915,2]
[419087257,1774857039718,-500.0,0.00021915,2]
[419087259,1774857039728,-500.0,0.00021915,2]
[419087261,1774857039738,-500.0,0.00021915,2]
[419087263,1774857039749,-500.0,0.00021915,2]
[419087265,1774857039760,-500.0,0.00021915,2]
[419087267,1774857039770,-500.0,0.00021915,2]
[419087269,1774857039782,-500.0,0.00021915,2]
[419087271,1774857039792,-500.0,0.00021915,2]
[419087273,1774857039802,-500.0,0.00021915,2]
[419087275,1774857039812,-500.0,0.00021915,2]
[419087277,1774857039823,-500.0,0.00021915,2]
[419087279,1774857039833,-500.0,0.00021915,2]
[419087281,1774857039843,-500.0,0.00021915,2]
[419087283,1774857039853,-500.0,0.00021915,2]
[419087285,1774857039864,-500.0,0.00021915,2]
[419087287,1774857039874,-500.0,0.00021915,2]
[419087289,1774857039884,-500.0,0.00021915,2]
[419087291,1774857039894,-500.0,0.00021915,2]
[419087293,1774857039905,-500.0,0.00021915,2]
[419087294,1774857039915,-500.0,0.00021915,2]
[419087296,1774857039927,-500.0,0.00021915,2]
[419087297,1774857039937,-500.0,0.00021915,2]
[419087298,1774857039947,-500.0,0.00021915,2]
[419087299,1774857039957,-500.0,0.00021915,2]
[419087300,1774857039967,-500.0,0.00021915,2]
[419087301,1774857039977,-500.0,0.00021915,2]
[419087302,1774857039987,-500.0,0.00021915,2]
[419087303,1774857039996,-265.75797492,0.00021915,2]
[419087304,1774857040006,-500.0,0.00021915,2]
[419087305,1774857040016,-500.0,0.00021915,2]
[419087306,1774857040026,-500.0,0.00021915,2]
[419087307,1774857040038,-500.0,0.00021915,2]
[419087308,1774857040049,-500.0,0.00021915,2]
[419087309,1774857040059,-500.0,0.00021915,2]
[419087310,1774857040069,-500.0,0.00021915,2]
[419087311,1774857040079,-500.0,0.00021915,2]
[419087312,1774857040089,-384.66457605,0.00021915,2]
[419087313,1774857040099,-500.0,0.00021915,2]
[419087314,1774857040109,-500.0,0.00021915,2]
[419087315,1774857040119,-369.97948182,0.00021915,2]
[419087317,1774857040129,-500.0,0.00021915,2]
[419087319,1774857040139,-500.0,0.00021915,2]
[419087321,1774857040149,-500.0,0.00021915,2]
[419087322,1774857040159,-500.0,0.00021915,2]
[419087323,1774857040169,-500.0,0.00021915,2]
[419087324,1774857040179,-500.0,0.00021915,2]
[419087326,1774857040189,-500.0,0.00021915,2]
[419087329,1774857040200,-500.0,0.00021915,2]
[419087331,1774857040211,-500.0,0.00021915,2]
[419087333,1774857040221,-500.0,0.00021915,2]
[419087335,1774857040232,-500.0,0.00021915,2]
[419087337,1774857040242,-500.0,0.00021915,2]
[419087339,1774857040253,-500.0,0.00021915,2]
[419087341,1774857040263,-500.0,0.00021915,2]
[419087343,1774857040275,-500.0,0.00021915,2]
[419087345,1774857040286,-500.0,0.00021915,2]
[419087348,1774857040296,-500.0,0.00021915,2]
[419087351,1774857040307,-500.0,0.00021915,2]
[419087353,1774857040318,-500.0,0.00021915,2]
[419087355,1774857040330,-500.0,0.00021915,2]
[419087357,1774857040341,-515.3020236,0.00021915,2]
[419087360,1774857040352,-500.0,0.00021915,2]
[419087362,1774857040363,-500.0,0.00021915,2]
[419087364,1774857040374,-500.0,0.00021915,2]
[419087366,1774857040384,-500.0,0.00021915,2]
[419087368,1774857040396,-500.0,0.00021915,2]
[419087370,1774857040408,-500.0,0.00021915,2]
[419087372,1774857040420,-500.0,0.00021915,2]
[419087374,1774857040432,-500.0,0.00021915,2]
[419087376,1774857040443,-500.0,0.00021915,2]
[419087378,1774857040455,-500.0,0.00021915,2]
[419087380,1774857040464,-500.0,0.00021915,2]
[419087383,1774857040475,-500.0,0.00021915,2]
[419087385,1774857040485,-500.0,0.00021915,2]
[419087387,1774857040495,-500.0,0.00021915,2]
[419087389,1774857040505,-500.0,0.00021915,2]
[419087391,1774857040515,-500.0,0.00021915,2]
[419087393,1774857040525,-500.0,0.00021915,2]
[419087395,1774857040535,-500.0,0.00021915,2]
[419087396,1774857040545,-5019.57603073,0.00021916,2]
[419087397,1774857040555,-500.0,0.00021916,9]
[419087398,1774857040567,-361.05491843,0.00021917,2]
[419087399,1774857040577,-500.0,0.00021917,2]
[419087400,1774857040587,-500.0,0.00021917,2]
[419087401,1774857040598,-160.70031084,0.00021917,2]
[419087402,1774857040608,-500.0,0.00021917,2]
[419087403,1774857040618,-500.0,0.00021917,2]
[419087404,1774857040628,-500.0,0.00021917,2]
[419087405,1774857040638,-500.0,0.00021917,2]
[419087406,1774857040647,-155.0,0.00021917,2]
[419087407,1774857040657,-500.0,0.00021917,9]
[419087408,1774857040667,-500.0,0.00021917,9]
[419087409,1774857040676,-500.0,0.00021917,9]
[419087410,1774857040686,-500.0,0.00021917,9]
[419087411,1774857040696,-500.0,0.00021917,9]
[419087412,1774857040706,-500.0,0.00021917,9]
[419087413,1774857040715,-500.0,0.00021917,9]
[419087414,1774857040725,-500.0,0.00021917,9]